bitfinex/quotes_SOLUSD_20240703
["timestamp","ask_amount","ask_price","bid_price","bid_amount"]
[1719983341705,7.01366543,149.08,149.06,6.7086]
[1719983342019,7.01366543,149.08,149.05,23.4814]
[1719983342719,7.01366543,149.08,149.04,6.7094]
[1719983343703,13.72156543,149.08,149.04,6.7094]
[1719983344024,7.01366543,149.08,149.04,6.7094]
[1719983345330,0.17,149.07,149.02,16.7755]
[1719983345499,0.34,149.07,148.99,16.7794]
[1719983345708,6.7094,149.05,149.0,6.7113]
[1719983345907,0.34,149.07,148.99,16.7794]
[1719983346115,6.7091,149.05,148.99,16.7794]
[1719983346323,6.7091,149.05,149.0,6.7112]
[1719983346799,6.2146,149.05,148.96,16.7823]
[1719983347001,6.7101,149.03,148.96,16.7823]
[1719983348309,6.7101,149.03,148.98,6.7121]
[1719983350230,6.7106,149.02,148.98,6.7121]
[1719983351026,6.7106,149.02,148.97,6.7126]
[1719983351406,7.01792723,149.01,148.97,6.7126]
[1719983351808,7.01792723,149.01,148.98,6.7122]
[1719983352643,7.01792723,149.01,148.96,16.7823]
[1719983352847,6.7118,148.99,148.96,16.7823]
[1719983353010,13.72922723,149.01,148.96,23.4953]
[1719983353339,13.72882723,149.01,148.96,16.7823]
[1719983353631,6.7115,149.0,148.96,23.4954]
[1719983355434,13.72902723,149.01,148.96,23.4954]
[1719983355633,6.7118,148.99,148.94,6.7136]
[1719983355809,6.7118,148.99,148.95,6.7136]
[1719983356010,7.01792723,149.01,148.96,6.7128]
[1719983356231,7.01792723,149.01,148.95,23.4969]
[1719983356441,0.17,149.0,148.95,23.4969]
[1719983356643,6.7121,148.99,148.95,23.4969]
[1719983357313,6.7124,148.98,148.95,16.7833]
[1719983357625,6.7124,148.98,148.93,6.7144]
[1719983359826,6.7124,148.98,148.94,6.714]
[1719983360150,6.7128,148.97,148.93,6.7145]
[1719983361033,6.7128,148.97,148.92,23.5016]
[1719983361434,6.7128,148.97,148.93,6.7145]
[1719983362670,13.72832834,148.98,148.94,6.714]
[1719983363333,13.72832834,148.98,148.97,6.7127]
[1719983363334,7.01592834,148.98,148.97,6.7127]
[1719983363547,15.5368,149.04,148.91,30.39]
[1719983363548,15.5368,149.04,149.0,16.7783]
[1719983363726,16.7756,149.03,148.94,16.785]
[1719983364042,6.7115,149.0,148.96,6.7131]
[1719983364619,7.01395903,149.02,148.96,16.5256]
[1719983364833,7.01395903,149.02,149.0,6.711]
[1719983365742,6.7092,149.05,149.0,6.711]
[1719983365922,13.72251637,149.05,149.0,6.711]
[1719983366956,6.7097,149.04,149.0,6.711]
[1719983367155,7.01331637,149.05,148.98,30.39]
[1719983367454,7.01331637,149.05,148.96,22.5579]
[1719983367455,7.01331637,149.05,148.99,20.17]
[1719983367762,6.853907,149.09,149.01,16.7763]
[1719983368252,6.7089,149.06,149.0,6.7109]
[1719983368456,13.561607,149.09,149.03,6.71]
[1719983368654,6.853907,149.09,148.97,0.17]
[1719983368858,40.23,149.08,148.97,20.0]
[1719983369054,6.71,149.03,148.98,6.7122]
[1719983369366,6.7108,149.02,148.97,23.4935]
[1719983369560,6.711,149.01,148.97,16.7809]
[1719983369734,6.7105,149.02,148.97,23.4936]
[1719983370056,92.83956855,149.08,148.94,30.39]
[1719983370057,25.44996855,149.08,148.94,30.39]
[1719983370351,6.7091,149.05,149.01,6.7108]
[1719983371051,62.45046855,149.08,148.98,23.4915]
[1719983371348,37.0025,149.06,148.95,16.7839]
[1719983371551,26.8795,149.05,149.0,6.7113]
[1719983371752,6.7099,149.04,148.99,6.7114]
[1719983371944,0.17,149.04,148.99,6.7114]
[1719983372149,20.0,149.07,149.0,16.7785]
[1719983372326,0.17,149.06,149.0,16.7785]
[1719983372526,0.34,149.06,149.0,16.7785]
[1719983373232,6.71,149.04,149.0,16.7785]
[1719983373849,6.7114,149.0,148.96,6.7128]
[1719983374050,6.7114,149.0,148.94,16.7843]
[1719983374456,6.7114,149.0,148.95,6.7135]
[1719983374837,16.1771,149.03,148.99,16.7796]
[1719983375036,15.8371,149.03,148.92,22.6339]
[1719983375234,6.711,149.01,148.97,6.7126]
[1719983375438,6.711,149.01,148.96,23.4956]
[1719983375747,0.34,149.02,148.93,16.7861]
[1719983375943,6.7115,149.0,148.93,16.7861]
[1719983376133,6.7115,149.0,148.94,6.7137]
[1719983376334,6.7115,149.0,148.93,16.7861]
[1719983376335,0.34,149.02,148.93,16.7861]
[1719983376546,0.34,149.02,148.93,23.5006]
[1719983376547,6.7129,148.97,148.93,23.5006]
[1719983376762,6.7124,148.98,148.93,23.5006]
[1719983377242,6.7124,148.98,148.94,6.714]
[1719983377448,20.34,149.02,148.96,6.7131]
[1719983377662,15.8371,149.03,148.92,46.6882]
[1719983377847,6.1004,149.06,148.96,30.39]
[1719983378046,6.1004,149.06,149.02,16.7755]
[1719983378452,6.7096,149.04,149.0,6.7113]
[1719983378667,6.7096,149.04,148.99,23.491]
[1719983379049,13.72359042,149.06,148.99,31.8219]
[1719983379441,7.01449042,149.06,149.01,16.7763]
[1719983379864,13.72339042,149.06,149.01,23.4868]
[1719983380162,6.7114,149.0,148.95,23.1615]
[1719983380338,6.711,149.01,148.96,20.0]
[1719983380546,6.7106,149.02,148.97,6.7126]
[1719983380748,6.7115,149.0,148.96,36.7823]
[1719983381041,23.78669042,149.06,148.98,6.7122]
[1719983381247,0.34,149.05,148.99,16.779]
[1719983381438,0.34,149.05,149.0,6.7113]
[1719983381439,7.0495,149.05,149.0,6.7113]
[1719983381639,7.01449042,149.06,149.01,6.7108]
[1719983381640,13.72319042,149.06,149.01,6.7108]
[1719983381858,6.71,149.04,148.99,16.779]
[1719983382365,13.72359042,149.06,149.0,6.7113]
[1719983382553,0.17,149.05,149.0,6.7113]
[1719983382955,6.8792,149.05,149.0,6.7113]
[1719983383159,6.7092,149.05,149.0,6.7113]
[1719983383338,6.7092,149.05,149.01,6.7109]
[1719983383541,7.01449042,149.06,149.01,16.7767]
[1719983383770,13.72349042,149.06,149.01,23.4873]
[1719983384148,7.01449042,149.06,149.02,6.7103]
[1719983384344,13.72319042,149.06,149.01,23.4876]
[1719983384554,6.7091,149.05,149.01,16.7767]
[1719983384742,7.01449042,149.06,149.0,6.7113]
[1719983384939,6.7092,149.05,149.0,6.7113]
[1719983385647,6.7096,149.04,149.0,6.7113]
[1719983385870,7.01449042,149.06,149.0,6.7113]
[1719983386539,7.01449042,149.06,148.98,23.4921]
[1719983386740,0.34,149.05,148.98,23.4921]
[1719983387067,6.7106,149.02,148.98,16.7802]
[1719983387443,6.7101,149.03,148.98,23.4923]
[1719983387644,20.17,149.05,148.99,6.7115]
[1719983387878,20.17,149.05,148.98,23.4923]
[1719983388167,6.7104,149.03,148.98,23.4923]
[1719983388550,6.7106,149.02,148.98,23.4923]
[1719983390579,6.7109,149.01,148.98,16.7802]
[1719983390757,6.7106,149.02,148.98,16.7802]
[1719983391078,6.7106,149.02,148.98,23.4923]
[1719983392369,6.7106,149.02,148.98,16.7802]
[1719983392564,7.01696642,149.04,149.0,16.7779]
[1719983392771,6.7104,149.03,148.98,6.7119]
[1719983393074,13.72666642,149.04,148.95,23.1615]
[1719983393273,13.72666642,149.04,148.99,23.4905]
[1719983393474,13.72666642,149.04,149.01,6.7106]
[1719983393475,7.01696642,149.04,149.01,6.7106]
[1719983393663,7.01696642,149.04,149.0,6.7113]
[1719983393986,13.72666642,149.04,149.0,6.7113]
[1719983394149,7.01696642,149.04,149.01,6.7109]
[1719983395179,7.01696642,149.04,149.0,6.7113]
[1719983396451,7.01696642,149.04,149.01,6.7108]
[1719983396654,13.72656642,149.04,149.0,6.7114]
[1719983397067,7.01696642,149.04,149.0,6.7114]
[1719983397568,13.72656642,149.04,149.0,6.7114]
[1719983397953,7.01696642,149.04,149.0,6.7114]
[1719983398553,13.72656642,149.04,149.0,6.7114]
[1719983399975,7.01696642,149.04,149.03,6.71]
[1719983400158,0.847807,149.09,149.03,6.71]
[1719983400159,0.847807,149.09,149.07,6.7078]
[1719983400478,0.847807,149.09,149.06,16.7708]
[1719983400866,0.847807,149.09,149.06,23.4793]
[1719983402373,0.847807,149.09,149.06,16.7708]
[1719983402562,0.847807,149.09,149.05,6.709]
[1719983403682,7.555107,149.09,149.04,6.7095]
[1719983403866,6.7083,149.07,149.03,16.7744]
[1719983404066,6.7087,149.06,149.0,16.7781]
[1719983404654,6.7091,149.05,149.0,23.4891]
[1719983404870,36.143407,149.09,148.98,16.2773]
[1719983405078,6.7097,149.04,149.0,6.7113]
[1719983405876,6.7106,149.02,148.97,6.7123]
[1719983406077,6.7106,149.02,148.95,65.5524]
[1719983406078,37.0026,149.06,148.95,31.985]
[1719983406255,20.34,149.05,148.97,16.7809]
[1719983406457,6.7101,149.03,148.98,6.7119]
[1719983406681,6.7105,149.02,148.97,23.4935]
[1719983406864,6.7101,149.03,148.97,16.7809]
[1719983407064,6.7101,149.03,148.98,6.7122]
[1719983407566,6.7105,149.02,148.98,6.7122]
[1719983408869,6.7099,149.04,148.97,16.7809]
[1719983409255,6.7099,149.04,148.99,6.7117]
[1719983409690,6.7102,149.03,148.99,6.7117]
[1719983411658,6.7102,149.03,148.98,6.7122]
[1719983411863,7.01669903,149.05,148.97,23.4936]
[1719983411864,6.7109,149.01,148.97,23.4936]
[1719983412591,57.63669903,149.05,148.94,16.7848]
[1719983412765,6.7119,148.99,148.95,6.7135]
[1719983412970,16.7757,149.03,148.94,23.4988]
[1719983412971,6.7125,148.98,148.94,23.4988]
[1719983413170,6.7129,148.97,148.92,6.7148]
[1719983413891,6.7134,148.96,148.92,6.7148]
[1719983414095,6.7131,148.97,148.92,6.7146]
[1719983414265,6.7132,148.96,148.92,6.7146]
[1719983415486,6.7132,148.96,148.91,16.3933]
[1719983415487,20.23,149.01,148.91,16.3933]
[1719983415787,20.23,149.01,148.93,6.7145]
[1719983415788,20.34,149.0,148.93,6.7145]
[1719983416163,6.7127,148.98,148.93,6.7145]
[1719983416366,6.7129,148.97,148.92,23.5018]
[1719983416587,6.7132,148.96,148.92,23.5018]
[1719983416799,6.7137,148.95,148.9,6.7155]
[1719983417869,6.7141,148.94,148.9,6.7155]
[1719983418967,6.7137,148.95,148.9,6.7155]
[1719983420308,0.17,148.96,148.9,6.7155]
[1719983420309,6.7141,148.94,148.9,6.7155]
[1719983421798,6.7154,148.92,148.87,21.9281]
[1719983421975,6.7164,148.89,148.85,13.301]
[1719983422166,16.7869,148.93,148.85,6.583]
[1719983422364,6.7154,148.91,148.87,6.7171]
[1719983422569,6.7154,148.91,148.86,6.7173]
[1719983422797,6.717,148.88,148.85,6.583]
[1719983422973,6.7157,148.91,148.83,16.4414]
[1719983423175,6.7157,148.91,148.84,16.7954]
[1719983423467,6.7157,148.91,148.86,6.7176]
[1719983423973,6.7157,148.91,148.87,6.7172]
[1719983424181,6.885,148.92,148.87,6.7172]
[1719983424570,6.7155,148.91,148.87,6.7172]
[1719983425202,6.8851,148.92,148.87,6.7172]
[1719983426480,6.7155,148.91,148.87,6.7172]
[1719983427407,7.02259871,148.95,148.94,6.7141]
[1719983427617,6.7109,149.02,148.96,6.713]
[1719983427801,7.02006133,149.01,148.95,6.7136]
[1719983427993,13.73106133,149.01,148.96,6.713]
[1719983428311,6.7114,149.0,148.96,6.713]
[1719983429000,7.02006133,149.01,148.97,16.7811]
[1719983429211,23.2398,149.07,148.98,6.7122]
[1719983429408,20.23,149.05,148.98,6.7122]
[1719983429614,7.01879646,149.02,148.98,6.7122]
[1719983429789,6.4687,149.07,148.99,16.779]
[1719983429990,0.847807,149.09,149.06,6.7086]
[1719983430222,0.847807,149.09,149.0,6.4697]
[1719983430223,0.847807,149.09,149.04,23.4825]
[1719983430524,0.847807,149.09,149.04,16.7732]
[1719983430892,0.847807,149.09,149.04,23.4824]
[1719983431099,7.555407,149.09,149.04,23.4824]
[1719983431593,6.7085,149.07,149.02,6.71]
[1719983431789,0.847807,149.09,149.03,6.7096]
[1719983431790,6.7078,149.08,149.03,6.7096]
[1719983431995,0.847807,149.09,149.05,6.7091]
[1719983432613,0.847807,149.09,149.03,16.7741]
[1719983433514,7.555207,149.09,149.04,6.7095]
[1719983433918,6.7086,149.07,149.01,6.7106]
[1719983434214,6.8778,149.08,149.03,6.71]
[1719983434510,7.555107,149.09,149.04,6.7094]
[1719983435507,0.847807,149.09,149.05,16.7727]
[1719983435708,0.847807,149.09,149.07,6.708]
[1719983435916,0.847807,149.09,149.06,6.7086]
[1719983436094,0.847807,149.09,149.05,16.7727]
[1719983436298,0.847807,149.09,149.08,6.7078]
[1719983436499,0.847807,149.09,149.07,23.478]
[1719983436694,0.847807,149.09,149.08,12.7603]
[1719983437736,0.847807,149.09,149.08,63.1503]
[1719983438016,0.847807,149.09,149.08,32.7603]
[1719983438399,0.847807,149.09,149.08,12.7603]
[1719983440815,13.7179748,149.15,149.12,6.7058]
[1719983440816,7.0132748,149.15,149.12,6.7058]
[1719983441721,13.7180748,149.15,149.11,16.7656]
[1719983442518,6.7051,149.14,149.11,16.7656]
[1719983442902,6.7051,149.14,149.1,6.7068]
[1719983443106,6.7058,149.13,149.08,16.7689]
[1719983443906,6.7051,149.14,149.1,6.7068]
[1719983444101,6.7051,149.14,149.09,6.7072]
[1719983445710,13.7179748,149.15,149.1,6.7065]
[1719983446221,6.7051,149.14,149.1,6.7065]
[1719983447316,6.7051,149.14,149.09,6.7073]
[1719983447525,6.7056,149.13,149.09,6.7073]
[1719983448425,6.7056,149.13,149.08,16.7689]
[1719983448426,6.7056,149.13,149.08,23.4766]
[1719983448923,6.7056,149.13,149.05,33.5451]
[1719983448924,0.17,149.14,149.07,6.7081]
[1719983449214,0.17,149.14,149.06,6.7086]
[1719983449215,7.18411514,149.13,149.06,6.7086]
[1719983449421,6.7069,149.1,149.06,6.7086]
[1719983449802,6.7069,149.1,149.05,23.4812]
[1719983450015,6.7074,149.09,149.05,23.4812]
[1719983450514,6.7079,149.08,149.04,6.7095]
[1719983450721,0.17,149.12,149.04,6.7095]
[1719983450722,6.7074,149.09,149.04,6.7095]
[1719983450897,6.7078,149.08,149.04,6.7095]
[1719983451308,6.7074,149.09,149.04,23.483]
[1719983451520,0.17,149.12,149.0,23.2398]
[1719983451727,0.17,149.12,149.0,6.4622]
[1719983451728,20.23,149.11,149.0,6.4622]
[1719983451899,6.7092,149.05,149.0,6.711]
[1719983452419,6.7088,149.06,149.01,6.7107]
[1719983454433,6.7083,149.07,149.02,6.7103]
[1719983455925,6.7087,149.06,149.01,23.4877]
[1719983456436,6.7087,149.06,149.02,6.7104]
[1719983458036,0.34,149.08,149.03,16.7744]
[1719983458037,6.7081,149.08,149.03,16.7744]
[1719983458331,20.0,149.07,149.03,23.4841]
[1719983458536,26.7083,149.07,149.03,23.4841]
[1719983458832,0.847807,149.24,149.05,15.5529]
[1719983459018,0.847807,149.24,149.11,6.7063]
[1719983459019,6.7046,149.15,149.11,6.7063]
[1719983459210,6.7048,149.15,149.11,16.7651]
[1719983460016,6.7043,149.16,149.11,23.4715]
[1719983460237,6.7038,149.17,149.11,23.4715]
[1719983460424,6.7038,149.17,149.12,6.7057]
[1719983461318,7.01250185,149.18,149.17,6.7037]
[1719983461511,0.03986733,149.22,149.17,6.7037]
[1719983461713,0.03986733,149.22,149.16,16.7596]
[1719983462013,6.702,149.21,149.16,23.4637]
[1719983462419,6.74136733,149.22,149.17,6.7037]
[1719983462727,6.7019,149.21,149.17,6.7037]
[1719983463030,0.03986733,149.22,149.14,6.705]
[1719983463031,6.7028,149.19,149.14,6.705]
[1719983463218,6.7034,149.18,149.13,23.4692]
[1719983463626,6.7037,149.17,149.13,16.7637]
[1719983463833,6.7037,149.17,149.11,33.5318]
[1719983463834,20.23,149.2,149.1,16.7669]
[1719983464015,6.7051,149.14,149.09,6.707]
[1719983464811,6.7056,149.13,149.08,6.7077]
[1719983465014,20.23,149.18,149.07,16.7703]
[1719983465234,6.706,149.12,149.07,23.4781]
[1719983465430,20.4,149.17,149.07,16.7703]
[1719983465641,6.7054,149.14,149.09,6.7071]
[1719983466142,6.8747,149.15,149.1,6.7069]
[1719983466442,50.0,150.19,149.07,33.5396]
[1719983466443,20.39750197,149.22,149.07,33.5396]
[1719983466648,6.7024,149.2,149.16,6.7041]
[1719983466940,12.7814,149.21,149.16,6.7041]
[1719983467248,6.7024,149.2,149.15,6.7046]
[1719983467824,6.7028,149.19,149.15,6.7046]
[1719983468750,6.7024,149.2,149.15,6.7046]
[1719983468944,0.17,149.19,149.15,6.7046]
[1719983469335,6.8729,149.19,149.14,23.4672]
[1719983469532,6.7046,149.15,149.11,6.7061]
[1719983470124,0.17,149.18,149.1,16.7662]
[1719983470329,6.7038,149.17,149.12,16.764]
[1719983470529,0.17,149.18,149.15,16.7616]
[1719983470750,20.0,149.2,149.15,23.4662]
[1719983471247,26.7027,149.2,149.16,6.704]
[1719983471653,26.7027,149.2,149.15,23.4661]
[1719983471948,20.0,149.2,149.16,6.7041]
[1719983472250,20.0,149.2,149.11,33.5316]
[1719983472251,7.01082977,149.19,149.17,16.7585]
[1719983472457,0.03986733,149.22,149.18,6.7029]
[1719983472758,6.74136733,149.22,149.18,6.7029]
[1719983472946,6.7021,149.21,149.17,16.7585]
[1719983473336,6.7024,149.2,149.16,6.704]
[1719983473661,0.03986733,149.22,149.18,6.703]
[1719983473852,20.03986733,149.22,149.18,6.703]
[1719983474345,20.03986733,149.22,149.19,6.7025]
[1719983474746,20.03986733,149.22,149.18,23.4608]
[1719983475282,20.03986733,149.22,149.2,16.7552]
[1719983475552,0.03986733,149.22,149.2,16.7552]
[1719983475719,0.03986733,149.22,149.2,23.4574]
[1719983476039,0.03986733,149.22,149.21,6.7019]
[1719983476240,0.847807,149.24,149.23,23.4536]
[1719983476421,0.847807,149.24,149.2,6.606]
[1719983476625,0.847807,149.24,149.19,16.7562]
[1719983476824,14.55690036,149.24,149.19,16.7562]
[1719983477020,6.7019,149.21,149.16,16.7601]
[1719983477548,6.702,149.21,149.16,23.4642]
[1719983477726,6.8717,149.22,149.17,6.7036]
[1719983477925,6.7017,149.22,149.17,6.7036]
[1719983478248,0.17,149.21,149.17,6.7036]
[1719983478456,7.042,149.21,149.16,23.4641]
[1719983478625,0.17,149.21,149.18,16.7576]
[1719983479051,6.8718,149.22,149.18,16.7576]
[1719983479258,6.7024,149.2,149.15,16.7611]
[1719983479458,6.872,149.21,149.16,6.7041]
[1719983479649,6.8725,149.2,149.15,23.4656]
[1719983479838,6.7025,149.2,149.16,6.7041]
[1719983480159,0.17,149.21,149.16,6.7041]
[1719983480160,6.872,149.21,149.16,6.7041]
[1719983480338,0.17,149.2,149.16,6.7041]
[1719983480544,6.872,149.21,149.16,6.7041]
[1719983480742,6.7024,149.2,149.15,16.7611]
[1719983480947,6.8724,149.2,149.15,16.7611]
[1719983481151,0.17,149.21,149.16,6.7042]
[1719983481355,6.7024,149.2,149.16,6.7041]
[1719983481561,6.7024,149.2,149.15,16.7611]
[1719983482060,6.7024,149.2,149.15,23.4657]
[1719983482632,6.7024,149.2,149.16,6.704]
[1719983483161,26.2435,149.2,149.08,6.3133]
[1719983483358,6.7042,149.16,149.1,6.7065]
[1719983483536,6.7042,149.16,149.11,6.7061]
[1719983483937,6.7042,149.16,149.12,6.7059]
[1719983484143,6.7042,149.16,149.11,6.7064]
[1719983485050,0.34,149.17,149.11,6.7064]
[1719983485051,7.0447,149.15,149.11,6.7064]
[1719983485248,6.7047,149.15,149.11,6.7064]
[1719983485452,0.17,149.14,149.05,16.7726]
[1719983485665,0.17,149.14,149.1,6.7068]
[1719983485844,0.17,149.14,149.11,6.7063]
[1719983486051,6.7055,149.14,149.09,6.7072]
[1719983486245,20.34,149.15,149.09,6.7072]
[1719983486246,7.0456,149.13,149.09,6.7072]
[1719983486748,0.34,149.13,149.09,6.7072]
[1719983486969,0.34,149.13,149.1,6.7068]
[1719983487265,7.01365911,149.13,149.1,16.7666]
[1719983487659,6.706,149.12,149.06,50.3139]
[1719983488466,7.01365911,149.13,149.08,6.7077]
[1719983488467,13.71925911,149.13,149.08,6.7077]
[1719983488647,6.7061,149.12,149.07,6.7082]
[1719983488836,0.17,149.11,149.07,6.7082]
[1719983489039,6.8766,149.11,149.07,6.7082]
[1719983489237,0.17,149.11,149.07,6.7082]
[1719983490364,0.17,149.11,149.08,6.7077]
[1719983490941,20.34,149.12,149.07,6.7081]
[1719983491667,27.0463,149.12,149.07,6.7081]
[1719983491836,20.34,149.12,149.08,6.7075]
[1719983492736,0.34,149.12,149.08,6.7075]
[1719983492952,7.01365911,149.13,149.06,33.542]
[1719983493134,7.01365911,149.13,149.1,6.7065]
[1719983493335,6.7048,149.15,149.11,6.7063]
[1719983493563,7.01308623,149.14,149.11,6.7063]
[1719983494268,7.01308623,149.14,149.1,16.7664]
[1719983494269,7.01308623,149.14,149.13,6.7055]
[1719983494436,12.7162,149.2,149.13,6.7055]
[1719983494437,6.7031,149.19,149.13,6.7055]
[1719983494638,26.2435,149.2,149.12,16.7642]
[1719983494837,6.7043,149.16,149.12,16.7642]
[1719983495250,6.7047,149.15,149.09,16.768]
[1719983495451,6.7052,149.14,149.1,6.7065]
[1719983495664,7.01230923,149.16,149.09,16.768]
[1719983496249,6.7056,149.13,149.09,16.768]
[1719983496545,6.7056,149.13,149.09,23.4751]
[1719983496754,6.7055,149.13,149.09,16.768]
[1719983497154,6.706,149.12,149.09,16.768]
[1719983498342,6.7056,149.13,149.09,16.768]
[1719983498654,6.7052,149.14,149.09,23.4751]
[1719983498855,20.34,149.15,149.06,38.8637]
[1719983498856,6.7065,149.11,149.06,38.8637]
[1719983499172,6.707,149.1,149.06,23.4798]
[1719983499478,6.707,149.1,149.06,16.7712]
[1719983500673,6.7075,149.09,149.05,6.7087]
[1719983500969,6.7074,149.09,149.05,6.7091]
[1719983501757,6.707,149.1,149.05,6.7091]
[1719983501957,6.8773,149.09,149.05,6.7091]
[1719983502159,6.707,149.1,149.05,6.7091]
[1719983502370,0.17,149.09,149.06,6.7086]
[1719983502686,0.17,149.11,149.06,6.7086]
[1719983502979,20.0,149.12,149.07,6.7081]
[1719983503147,6.706,149.12,149.07,6.7081]
[1719983503344,6.7056,149.13,149.08,6.7076]
[1719983503543,6.706,149.12,149.08,6.7076]
[1719983503769,6.706,149.12,149.07,23.4778]
[1719983503956,7.01230923,149.16,149.08,35.676]
[1719983504170,7.01230923,149.16,149.12,6.7059]
[1719983504366,7.01230923,149.16,149.12,23.4704]
[1719983504562,7.01230923,149.16,149.12,16.7645]
[1719983504563,13.71660923,149.16,149.12,16.7645]
[1719983505259,13.71660923,149.16,149.12,23.4703]
[1719983506376,13.71660923,149.16,149.13,6.7054]
[1719983506377,7.01230923,149.16,149.13,6.7054]
[1719983506886,13.71650923,149.16,149.12,23.4704]
[1719983507674,6.7046,149.15,149.12,16.7645]
[1719983508355,13.71650923,149.16,149.12,23.4702]
[1719983508557,7.01230923,149.16,149.12,23.4702]
[1719983509682,7.01230923,149.16,149.12,16.7645]
[1719983509868,7.01230923,149.16,149.12,23.4704]
[1719983511187,13.71650923,149.16,149.12,23.4704]
[1719983518690,7.01230923,149.16,149.09,16.7676]
[1719983518894,6.7059,149.13,149.09,23.4746]
[1719983519472,6.706,149.12,149.09,16.7676]
[1719983519677,13.7194657,149.13,149.09,23.4749]
[1719983519986,6.7062,149.12,149.06,16.771]
[1719983520368,7.0138657,149.13,149.06,16.771]
[1719983520369,6.7065,149.11,149.06,16.771]
[1719983520680,6.7068,149.11,149.06,23.4794]
[1719983520882,27.1938657,149.13,149.03,16.7745]
[1719983520883,6.7085,149.07,149.03,16.7745]
[1719983521065,0.17,149.1,149.0,16.7779]
[1719983521066,6.7088,149.06,149.0,16.7779]
[1719983521267,0.17,149.1,149.04,6.7093]
[1719983521708,0.17,149.1,149.03,6.7099]
[1719983521709,6.7079,149.08,149.03,6.7099]
[1719983522283,0.34,149.1,149.04,6.7094]
[1719983522284,6.7074,149.09,149.04,6.7094]
[1719983522484,6.8778,149.08,149.03,6.7099]
[1719983522798,6.7078,149.08,149.04,6.7094]
[1719983523863,6.7073,149.09,149.04,6.7094]
[1719983524678,6.7073,149.09,149.05,6.7091]
[1719983525091,6.7073,149.09,149.04,6.7094]
[1719983525690,0.17,149.08,149.04,6.7094]
[1719983526202,0.17,149.08,149.05,6.7091]
[1719983526375,6.7073,149.09,149.04,6.7094]
[1719983527510,0.17,149.08,148.99,16.779]
[1719983527832,6.7083,149.07,149.03,6.71]
[1719983528178,6.7083,149.07,149.02,6.7103]
[1719983528372,6.8787,149.06,149.01,23.4877]
[1719983528596,6.7087,149.06,149.02,6.7104]
[1719983529171,0.17,149.07,149.03,16.7745]
[1719983529508,16.7351,149.08,149.03,16.7745]
[1719983529674,23.4429,149.08,149.04,6.7092]
[1719983529870,30.45922153,149.08,149.04,6.7092]
[1719983530072,23.75142153,149.08,149.04,6.7092]
[1719983530503,30.45922153,149.08,149.04,6.7092]
[1719983531072,7.01632153,149.08,149.07,6.7082]
[1719983531897,15.8004,149.12,149.07,6.7082]
[1719983532086,22.81491101,149.12,149.07,6.7082]
[1719983532292,22.81491101,149.12,149.08,6.7077]
[1719983532486,29.52101101,149.12,149.07,23.4783]
[1719983532786,22.81491101,149.12,149.07,16.7702]
[1719983532993,6.7068,149.11,149.07,16.7702]
[1719983533190,6.7068,149.11,149.07,23.4784]
[1719983533494,22.81491101,149.12,149.08,6.7077]
[1719983533495,29.52101101,149.12,149.08,6.7077]
[1719983533692,22.81491101,149.12,149.09,23.4751]
[1719983534000,22.81491101,149.12,149.09,16.7678]
[1719983534383,29.52091101,149.12,149.09,16.7678]
[1719983534584,29.52091101,149.12,149.07,6.7081]
[1719983534780,6.7067,149.11,149.06,23.4797]
[1719983535285,6.707,149.1,149.06,23.4797]